bitfinex-derivatives/quotes_SOLF0:USTF0_20250817
["timestamp","ask_amount","ask_price","bid_price","bid_amount"]
[1755428957048,2.97,192.77,192.69,3.06]
[1755428968754,8.01524859,192.76,192.65,2.81]
[1755428968957,2.91,192.74,192.65,2.81]
[1755428997573,2.9,192.72,192.62,2.93]
[1755428997778,2.9,192.7,192.62,2.93]
[1755428998580,4.72453355,192.69,192.62,2.93]
[1755428998778,2.9,192.67,192.62,2.93]
[1755428999181,2.9,192.67,192.57,2.93]
[1755428999385,2.9,192.65,192.57,2.93]
[1755429000373,2.9,192.73,192.57,8.65941951]
[1755429000574,2.9,192.71,192.61,2.93]
[1755429000776,4.76038045,192.7,192.61,127.5]
[1755429000975,2.9,192.68,192.62,2.93]
[1755429006082,5.84964178,192.78,192.62,2.93]
[1755429006283,2.9,192.69,192.62,2.93]
[1755429006983,4.76099496,192.68,192.62,2.93]
[1755429007177,2.9,192.67,192.62,2.93]
[1755429018188,2.97,192.76,192.62,2.93]
[1755429018384,8.46474662,192.75,192.62,2.93]
[1755429018595,2.97,192.73,192.62,2.93]
[1755429018799,2.97,192.71,192.62,2.93]
[1755429019098,2.97,192.69,192.62,2.93]
[1755429019298,8.77446267,192.79,192.62,2.93]
[1755429019299,4.76410339,192.68,192.62,2.93]
[1755429019512,2.97,192.66,192.62,2.93]
[1755429019696,5.84964178,192.76,192.57,8.65941951]
[1755429019999,2.97,192.74,192.59,2.92]
[1755429020196,8.46505558,192.73,192.59,2.92]
[1755429020400,11.43521814,192.72,192.59,2.92]
[1755429020600,2.97,192.7,192.59,2.92]
[1755429020803,2.97,192.68,192.59,2.92]
[1755429020997,2.97,192.66,192.59,2.92]
[1755429025400,2.97,192.77,192.6,2.92]
[1755429025605,2.97,192.75,192.61,8.65941951]
[1755429025805,8.46550831,192.74,192.62,2.92]
[1755429026002,2.97,192.72,192.62,2.92]
[1755429026200,2.97,192.7,192.62,2.92]
[1755429027307,2.97,192.79,192.62,8.65941951]
[1755429027500,2.97,192.77,192.63,2.92]
[1755429027699,2.97,192.75,192.63,2.92]
[1755429027895,8.46367858,192.74,192.63,2.92]
[1755429028102,2.97,192.72,192.63,2.92]
[1755429028298,4.763726,192.71,192.63,2.92]
[1755429028595,2.97,192.72,192.63,2.92]
[1755429028798,7.7334317,192.71,192.63,2.92]
[1755429028994,2.97,192.71,192.63,2.92]
[1755429035513,4.74445973,192.7,192.63,2.92]
[1755429035707,2.97,192.68,192.63,2.92]
[1755429039013,2.97,192.68,192.6,2.92]
[1755429043005,2.97,192.68,192.62,2.92]
[1755429052628,2.97,192.68,192.61,5.77398274]
[1755429052819,0.90340334,192.76,192.61,5.77398274]
[1755429052820,2.97,192.66,192.61,2.83]
[1755429053231,2.97,192.66,192.62,2.83]
[1755429053730,2.97,192.66,192.6,8.60398274]
[1755429053933,2.97,192.66,192.61,2.83]
[1755429054329,2.97,192.66,192.62,2.83]
[1755429054727,2.97,192.66,192.6,2.83]
[1755429058027,2.97,192.66,192.6,5.77398274]
[1755429058226,2.97,192.66,192.61,2.83]
[1755429058425,2.97,192.66,192.62,2.83]
[1755429061325,2.97,192.66,192.59,8.60398274]
[1755429061634,2.97,192.66,192.6,2.83]
[1755429074439,2.97,192.64,192.6,2.83]
[1755429076545,2.97,192.64,192.57,2.83]
[1755429077039,2.97,192.62,192.57,2.83]
[1755429078138,5.84964178,192.69,192.5,8.65941951]
[1755429078350,2.83,192.6,192.54,2.88]
[1755429078643,2.83,192.69,192.55,2.88]
[1755429078831,4.76144887,192.68,192.55,2.88]
[1755429079032,2.83,192.66,192.55,2.88]
[1755429079235,2.83,192.64,192.55,2.88]
[1755429079540,2.83,192.62,192.55,2.88]
[1755429079735,2.83,192.6,192.55,2.88]
[1755429080641,2.83,192.6,192.5,2.88]
[1755429081539,4.70550675,192.59,192.5,2.88]
[1755429081741,2.83,192.6,192.5,2.88]
[1755429081949,2.83,192.58,192.5,2.88]
[1755429086547,2.83,192.58,192.48,2.88]
[1755429091646,4.68421316,192.57,192.39,8.65941951]
[1755429091851,2.83,192.55,192.4,2.88]
[1755429092546,2.83,192.53,192.4,2.88]
[1755429096647,2.83,192.64,192.4,2.88]
[1755429096847,2.83,192.62,192.4,2.88]
[1755429097049,8.4422505,192.63,192.4,2.88]
[1755429097050,2.83,192.6,192.4,2.88]
[1755429097352,2.83,192.58,192.4,2.88]
[1755429106358,2.83,192.58,192.41,2.88]
[1755429108860,2.88,192.56,192.43,2.98]
[1755429110963,4.67794416,192.55,192.43,2.98]
[1755429111263,2.88,192.53,192.43,2.98]
[1755429113953,4.67955659,192.52,192.43,2.98]
[1755429114154,2.88,192.51,192.43,2.98]
[1755429118562,2.88,192.51,192.42,2.98]
[1755429119265,4.68604052,192.5,192.42,2.98]
[1755429119453,2.88,192.49,192.42,2.98]
[1755429121066,2.88,192.47,192.42,2.98]
[1755429121859,2.88,192.57,192.43,2.98]
[1755429122059,2.88,192.55,192.43,2.98]
[1755429122268,4.6910397,192.56,192.43,2.98]
[1755429122269,2.88,192.53,192.43,2.98]
[1755429124962,5.84964178,192.63,192.43,2.98]
[1755429125168,14.02108996,192.62,192.43,2.98]
[1755429125358,5.84964178,192.63,192.43,2.98]
[1755429125359,2.88,192.6,192.43,2.98]
[1755429125669,2.88,192.58,192.43,2.98]
[1755429125868,2.88,192.56,192.43,2.98]
[1755429126062,4.69653911,192.55,192.43,2.98]
[1755429126263,2.88,192.54,192.43,2.98]
[1755429126868,2.88,192.52,192.43,2.98]
[1755429129761,4.70251986,192.51,192.43,2.98]
[1755429129963,2.88,192.5,192.43,2.98]
[1755429132270,2.88,192.6,192.43,2.98]
[1755429132470,2.88,192.58,192.43,2.98]
[1755429132667,2.88,192.56,192.43,2.98]
[1755429132871,2.88,192.54,192.43,2.98]
[1755429133172,2.88,192.52,192.43,2.98]
[1755429139176,4.70555331,192.51,192.43,2.98]
[1755429139470,3.0,192.6,192.43,2.98]
[1755429139678,3.0,192.58,192.43,2.98]
[1755429139871,3.0,192.56,192.43,2.98]
[1755429140075,3.0,192.54,192.43,2.98]
[1755429140377,3.0,192.52,192.43,2.98]
[1755429143078,3.0,192.52,192.43,11.63941951]
[1755429143381,3.0,192.52,192.44,2.93]
[1755429144079,5.84964178,192.63,192.44,2.93]
[1755429144283,3.0,192.54,192.44,11.58941951]
[1755429144578,3.0,192.54,192.45,2.93]
[1755429145166,3.0,192.54,192.47,2.93]
[1755429155678,3.0,192.64,192.49,2.93]
[1755429155876,3.0,192.62,192.49,2.93]
[1755429156176,3.0,192.6,192.49,2.93]
[1755429156381,3.0,192.58,192.49,2.93]
[1755429157970,3.0,192.58,192.46,8.65941951]
[1755429158174,4.70691142,192.57,192.47,2.93]
[1755429158480,3.0,192.55,192.45,2.93]
[1755429159376,3.0,192.53,192.45,2.93]
[1755429189400,2.86,192.63,192.49,8.65941951]
[1755429189697,2.86,192.61,192.5,2.79]
[1755429189896,4.74718949,192.6,192.5,2.79]
[1755429190092,2.86,192.58,192.5,2.79]
[1755429215523,2.86,192.58,192.5,8.65941951]
[1755429215723,2.86,192.58,192.51,2.99]
[1755429216221,2.86,192.58,192.52,2.99]
[1755429223732,55.81678687,192.65,192.52,2.99]
[1755429223733,2.9,192.64,192.52,2.99]
[1755429225836,2.9,192.62,192.52,2.99]
[1755429227228,4.6809223,192.61,192.52,2.99]
[1755429227434,2.9,192.6,192.52,2.99]
[1755429229933,2.9,192.6,192.53,2.78]
[1755429233337,2.9,192.6,192.54,2.78]
[1755429241445,2.9,192.6,192.55,2.78]
[1755429242239,2.91,192.59,192.55,2.78]
[1755429242645,2.91,192.59,192.55,8.65941951]
[1755429242952,2.91,192.59,192.56,2.78]
[1755429243452,2.91,192.58,192.56,2.78]
[1755429245640,0.90374352,192.7,192.56,2.78]
[1755429245837,2.91,192.57,192.56,2.78]
[1755429246643,2.91,192.69,192.56,2.78]
[1755429246846,2.91,192.67,192.56,2.78]
[1755429247051,2.91,192.65,192.56,2.78]
[1755429247246,4.67547554,192.64,192.56,2.78]
[1755429247437,2.91,192.63,192.56,2.78]
[1755429279470,2.91,192.63,192.55,8.65941951]
[1755429279666,2.91,192.63,192.54,11.52941951]
[1755429279866,3.05,192.61,192.54,2.87]
[1755429280171,3.05,192.59,192.54,2.87]
[1755429283963,3.05,192.59,192.55,2.87]
[1755429288673,3.05,192.59,192.48,2.86]
[1755429291475,2.8,192.65,192.48,2.86]
[1755429291675,3.848725,192.64,192.48,2.86]
[1755429291969,2.8,192.62,192.48,2.86]
[1755429292477,2.8,192.62,192.51,8.67088672]
[1755429292676,2.8,192.62,192.52,2.86]
[1755429296176,2.8,192.62,192.53,2.86]
[1755429302682,2.8,192.62,192.53,8.67088672]
[1755429302880,2.8,192.62,192.54,2.86]
[1755429303577,2.8,192.62,192.55,8.67088672]
[1755429303883,2.8,192.62,192.56,2.86]
[1755429305885,0.90372005,192.7,192.56,2.86]
[1755429306085,2.8,192.68,192.56,2.86]
[1755429306380,2.8,192.66,192.56,2.86]
[1755429309281,2.8,192.64,192.54,8.67088672]
[1755429309487,2.8,192.64,192.54,2.86]
[1755429309788,2.8,192.62,192.54,2.86]
[1755429318488,2.95,192.69,192.55,11.63088672]
[1755429318789,2.95,192.67,192.57,2.96]
[1755429327297,2.95,192.72,192.57,2.96]
[1755429327506,2.95,192.7,192.59,2.96]
[1755429358124,2.8,192.73,192.59,8.67088672]
[1755429358429,2.8,192.73,192.6,2.91]
[1755429360129,2.8,192.73,192.6,8.67088672]
[1755429360430,2.8,192.73,192.61,2.91]
[1755429362130,2.8,192.73,192.61,8.67088672]
[1755429362433,2.8,192.73,192.62,2.91]
[1755429372938,2.8,192.73,192.62,11.58088672]
[1755429373137,2.8,192.73,192.63,2.91]
[1755429373441,2.8,192.73,192.65,2.91]
[1755429378447,2.8,192.73,192.65,2.81]
[1755429394161,4.51078323,192.72,192.65,2.81]
[1755429394362,2.8,192.71,192.65,2.81]
[1755429406277,2.8,192.79,192.65,2.81]
[1755429406475,2.8,192.77,192.65,2.81]
[1755429406663,2.8,192.75,192.65,2.81]
[1755429406865,2.8,192.73,192.65,2.81]
[1755429412579,2.8,192.73,192.66,2.92]
[1755429414682,47.75972438,192.8,192.66,2.92]
[1755429414883,2.87,192.78,192.69,2.92]
[1755429415082,2.87,192.76,192.69,2.92]
[1755429418185,2.87,192.76,192.66,2.92]
[1755429418388,4.50847062,192.75,192.66,2.92]
[1755429418679,2.87,192.74,192.66,2.92]
[1755429424993,2.87,192.74,192.67,2.92]
[1755429426986,2.87,192.74,192.65,8.67088672]
[1755429426987,2.87,192.74,192.65,2.92]
[1755429427192,2.87,192.72,192.65,2.92]
[1755429429904,2.87,192.72,192.63,2.92]
[1755429430389,4.41182604,192.71,192.63,2.92]
[1755429430602,2.87,192.78,192.63,2.92]
[1755429430789,2.87,192.76,192.63,2.92]
[1755429430987,2.87,192.74,192.63,2.92]
[1755429431191,8.12523509,192.73,192.63,2.92]
[1755429431498,2.87,192.71,192.61,129.68]
[1755429431690,8.12523509,192.7,192.61,129.68]
[1755429431999,2.87,192.69,192.61,129.68]
[1755429432393,2.87,192.67,192.61,129.68]
[1755429433799,2.87,192.67,192.61,2.92]
[1755429435702,2.87,192.77,192.61,11.59088672]
[1755429435898,8.13920327,192.76,192.62,8.67088672]
[1755429436101,11.00910927,192.75,192.64,2.92]
[1755429436297,2.87,192.74,192.64,2.92]
[1755429436695,8.12093376,192.73,192.64,2.92]
[1755429436899,2.87,192.72,192.64,2.92]
[1755429439706,46.85643829,192.8,192.64,2.92]
[1755429440005,2.79,192.74,192.64,2.92]
[1755429441198,2.79,192.79,192.64,8.67088672]
[1755429441504,2.79,192.77,192.66,3.05]
[1755429442510,2.79,192.77,192.66,8.67088672]
[1755429442703,2.79,192.77,192.67,3.05]
[1755429444101,8.11778715,192.76,192.67,3.05]
[1755429444301,2.79,192.75,192.67,3.05]
[1755429449609,3.71526627,192.74,192.62,3.05]
[1755429449813,2.79,192.72,192.62,3.05]
[1755429452908,4.45650044,192.71,192.62,3.05]
[1755429453114,2.79,192.69,192.62,3.05]
[1755429457714,2.79,192.67,192.58,3.05]
[1755429466520,8.21605183,192.66,192.58,3.05]
[1755429466720,2.79,192.67,192.58,3.05]
[1755429467014,2.79,192.65,192.58,3.05]
[1755429494831,2.9,192.72,192.58,3.05]
[1755429495037,2.9,192.7,192.58,3.05]
[1755429495332,8.23486539,192.69,192.58,3.05]
[1755429495525,2.9,192.77,192.58,3.05]
[1755429495725,8.23620848,192.76,192.58,8.67088672]
[1755429495936,8.23620848,192.75,192.59,3.01]
[1755429496135,2.9,192.73,192.59,3.01]
[1755429496330,2.9,192.71,192.59,3.01]
[1755429497529,2.84,192.79,192.6,8.67088672]
[1755429497730,2.84,192.77,192.63,2.79]
[1755429497929,2.84,192.75,192.65,2.79]
[1755429499237,2.84,192.77,192.65,2.79]
[1755429504228,2.84,192.79,192.65,11.46088672]
[1755429504434,2.84,192.79,192.66,2.79]
[1755429504635,2.84,192.79,192.66,11.46088672]
[1755429504834,2.84,192.79,192.67,2.79]
[1755429510038,2.84,192.91,192.68,3.31]
[1755429510238,2.84,192.91,192.77,18.37]
[1755429510433,2.84,192.94,192.8,15.58]
[1755429510639,2.84,192.96,192.83,18.37]
[1755429510943,2.84,192.96,192.84,2.79]
[1755429525151,2.84,192.96,192.84,15.58]
[1755429525356,2.84,192.96,192.85,2.79]
[1755429547266,2.84,192.96,192.87,3.02]
[1755429548261,2.9,193.1,192.9,3.02]
[1755429548475,2.9,193.08,192.92,3.02]
[1755429548675,2.9,193.06,192.92,3.02]
[1755429552983,4.31598423,193.05,192.92,3.02]
[1755429553285,4.32231907,193.04,192.92,3.02]
[1755429553580,2.9,193.03,192.92,3.02]
[1755429554373,2.9,193.03,192.93,3.02]
[1755429555375,2.9,193.03,192.93,11.69088672]
[1755429555576,2.9,193.03,192.94,3.02]
[1755429558186,2.9,193.03,192.95,126.7]
[1755429558380,2.9,193.03,192.95,129.7]
[1755429558885,2.9,193.03,192.95,126.7]
[1755429559691,2.95,193.01,192.95,126.7]
[1755429564087,2.95,193.11,192.95,126.7]
[1755429564292,2.95,193.09,192.96,3.0]
[1755429564493,7.99177878,193.08,192.96,3.0]
[1755429564700,2.95,193.06,192.96,3.0]
[1755429565592,2.95,193.06,192.97,3.0]
[1755429567297,2.95,193.06,192.96,3.0]
[1755429582005,2.95,193.06,192.97,3.0]
[1755429588113,2.95,193.06,192.97,11.67088672]
[1755429588418,2.95,193.06,192.98,2.97]
[1755429588914,353.84964178,193.16,192.98,2.97]
[1755429589119,2.85,193.14,193.0,2.97]
[1755429589319,2.85,193.12,193.0,2.97]
[1755429589517,7.99988831,193.11,193.0,2.97]
[1755429589718,2.85,193.1,193.0,2.97]
[1755429594217,2.85,193.1,193.0,11.64088672]
[1755429594516,2.85,193.1,193.01,2.97]
[1755429594820,2.85,193.1,193.02,2.97]
[1755429600025,2.85,193.18,193.02,2.97]
[1755429600223,2.85,193.16,193.02,2.97]
[1755429600426,2.85,193.14,193.02,11.64088672]
[1755429600623,2.85,193.14,193.03,2.97]
[1755429600931,2.85,193.14,193.04,2.97]
[1755429601718,2.85,193.14,193.04,126.5]
[1755429601923,2.85,193.14,193.05,2.97]
[1755429606722,2.85,193.26,193.08,8.67088672]
[1755429606922,2.85,193.24,193.09,8.67088672]
[1755429607125,2.85,193.24,193.1,2.97]
[1755429610427,2.85,193.24,193.11,2.97]
[1755429610736,2.85,193.26,193.13,2.97]
[1755429611032,347.8,193.38,193.15,2.97]
[1755429611332,14.62410445,193.52,193.14,126.46]
[1755429611333,2.85,193.37,193.23,15.58]
[1755429611541,2.85,193.37,193.25,2.97]
[1755429619129,2.85,193.37,193.26,126.7]
[1755429619332,2.85,193.37,193.27,2.96]
[1755429621734,2.85,193.37,193.24,347.8]
[1755429621927,2.85,193.37,193.28,2.96]
[1755429627141,0.90022506,193.49,193.28,2.96]
[1755429627447,2.81,193.39,193.28,2.96]
[1755429636041,2.81,193.39,193.29,129.64]
[1755429636339,2.81,193.39,193.3,2.96]
[1755429637548,2.81,193.39,193.29,126.68]
[1755429641046,2.81,193.39,193.29,129.64]
[1755429643159,2.81,193.39,193.3,2.96]
[1755429643447,2.81,193.37,193.29,126.68]
[1755429644047,2.81,193.37,193.29,129.64]
[1755429644256,2.81,193.35,193.3,2.96]
[1755429646050,2.81,193.35,193.31,2.96]
[1755429646553,2.81,193.35,193.29,126.68]
[1755429646554,2.81,193.35,193.29,129.64]
[1755429647745,2.81,193.35,193.29,126.68]
[1755429648148,2.81,193.35,193.31,2.76]
[1755429648349,2.94,193.33,193.31,2.76]
[1755429649353,2.94,193.33,193.29,126.68]
[1755429649554,2.94,193.4,193.3,2.76]
[1755429649748,2.94,193.38,193.3,2.76]
[1755429649950,3.88436901,193.37,193.3,2.76]
[1755429650150,3.88436901,193.36,193.3,2.76]
[1755429650353,2.94,193.34,193.3,2.76]
[1755429651051,8.78964178,193.43,193.3,2.76]
[1755429651349,2.94,193.41,193.3,2.76]
[1755429651555,2.94,193.39,193.3,2.76]
[1755429651756,2.94,193.37,193.3,2.76]
[1755429651959,2.94,193.35,193.3,2.76]
[1755429652154,2.94,193.35,193.31,2.76]
[1755429652658,2.94,193.33,193.31,2.76]
[1755429653059,5.84964178,193.41,193.31,2.76]
[1755429653246,2.94,193.32,193.31,2.76]
[1755429654651,2.94,193.34,193.31,2.76]
[1755429654853,6.77519587,193.33,193.31,2.76]
[1755429655052,2.94,193.33,193.32,2.76]
[1755429655249,6.78008601,193.33,193.32,2.76]
[1755429657261,2.94,193.4,193.32,2.76]
[1755429657462,2.94,193.38,193.32,2.76]
[1755429657662,2.94,193.36,193.32,2.76]
[1755429657964,3.83997728,193.35,193.32,2.76]
[1755429658162,2.94,193.34,193.32,2.76]
[1755429658958,2.94,193.41,193.32,2.76]
[1755429659159,2.94,193.39,193.32,2.76]
[1755429659360,3.77133302,193.38,193.32,2.76]
[1755429659559,2.94,193.36,193.33,2.76]
[1755429659760,2.94,193.36,193.32,2.76]
[1755429659962,2.94,193.34,193.3,2.76]
[1755429660266,2.94,193.34,193.31,2.76]
[1755429660962,2.94,193.34,193.32,2.76]
[1755429661360,2.94,193.34,193.3,2.76]
[1755429661559,2.94,193.34,193.29,126.68]
[1755429661760,2.94,193.34,193.31,2.76]
[1755429661955,2.94,193.34,193.32,2.76]
[1755429662463,8.78964178,193.43,193.29,126.68]
[1755429662668,2.94,193.41,193.3,2.76]
[1755429662864,2.94,193.39,193.3,2.76]
[1755429663069,2.94,193.37,193.3,2.76]
[1755429664473,2.94,193.45,193.3,2.76]
[1755429664664,2.94,193.43,193.3,2.76]
[1755429664968,2.94,193.41,193.3,2.76]
[1755429666064,2.94,193.39,193.3,2.76]
[1755429677390,2.94,193.46,193.32,2.85]
[1755429678085,3.03,193.44,193.32,2.85]
[1755429688586,3.03,193.44,193.32,8.57046533]
[1755429688787,3.03,193.44,193.33,11.42046533]
[1755429688995,3.03,193.44,193.35,8.57046533]
[1755429689190,3.03,193.44,193.36,2.85]
[1755429709796,3.03,193.44,193.37,2.77]
[1755429710002,3.03,193.44,193.38,126.34]
[1755429710203,3.03,193.44,193.39,2.77]
[1755429711603,530.0,193.58,193.39,2.77]
[1755429711906,2.93,193.46,193.39,2.77]
[1755429713601,2.93,193.46,193.4,2.77]
[1755429717601,2.93,193.46,193.4,11.34046533]
[1755429717812,2.93,193.58,193.42,2.77]
[1755429717999,2.93,193.56,193.42,2.77]
[1755429719308,2.93,193.56,193.42,8.57046533]
[1755429719510,2.93,193.56,193.43,2.77]
[1755429727717,2.93,193.56,193.42,126.3]
[1755429728419,2.93,193.56,193.43,2.77]
[1755429728624,2.93,193.54,193.43,2.77]
[1755429731126,2.93,193.54,193.42,126.3]
[1755429731327,2.93,193.54,193.42,129.07]
[1755429731821,2.93,193.54,193.43,2.77]
[1755429732630,2.93,193.54,193.42,126.3]
[1755429733026,2.93,193.54,193.43,2.77]
[1755429741134,4.40393407,193.53,193.43,2.77]
[1755429741331,2.8,193.52,193.43,2.77]
[1755429741736,4.4047891,193.51,193.37,3.02]
[1755429741936,109.98958853,193.59,193.37,3.02]
[1755429741937,2.8,193.49,193.37,3.02]
[1755429745938,4.40582851,193.48,193.35,3.02]
[1755429746144,2.8,193.46,193.35,3.02]
[1755429746940,2.8,193.46,193.36,3.02]
[1755429766460,8.17398798,193.45,193.32,129.32]
[1755429766665,2.8,193.44,193.33,3.02]
[1755429786578,2.8,193.44,193.34,3.04]
[1755429786773,8.19458805,193.43,193.34,3.04]
[1755429786973,2.97,193.41,193.34,3.04]
[1755429787476,2.97,193.41,193.33,126.34]
[1755429787670,2.97,193.41,193.31,3.04]
[1755429798883,2.97,193.41,193.31,8.57046533]
[1755429799085,2.97,193.41,193.32,2.85]
[1755429799282,2.97,193.41,193.34,2.85]
[1755429802983,2.97,193.41,193.33,126.34]
[1755429803180,2.97,193.41,193.32,2.85]
[1755429803385,8.19705025,193.4,193.32,2.85]
[1755429803587,2.76,193.39,193.32,2.85]
[1755429803788,4.81158387,193.38,193.32,2.85]
[1755429803986,4.81158387,193.37,193.32,2.85]
[1755429804181,2.76,193.46,193.32,2.85]
[1755429804482,2.76,193.44,193.32,2.85]
[1755429804682,2.76,193.42,193.32,2.85]
[1755429804892,2.76,193.4,193.32,2.85]
[1755429805095,2.76,193.38,193.32,2.85]
[1755429805295,4.81158387,193.37,193.3,126.32]
[1755429805494,2.76,193.35,193.3,126.32]
[1755429806087,2.76,193.35,193.31,2.85]
[1755429807196,2.76,193.34,193.31,2.85]
[1755429807598,5.84964178,193.48,193.31,2.85]
[1755429807795,2.76,193.35,193.31,2.85]
[1755429809296,2.76,193.46,193.31,2.85]
[1755429809499,2.76,193.44,193.31,2.85]
[1755429809700,2.76,193.42,193.31,2.85]
[1755429809904,5.84964178,193.5,193.31,2.85]
[1755429809905,2.76,193.4,193.31,2.85]
[1755429814009,2.76,193.4,193.32,2.85]
[1755429815595,4.82311898,193.39,193.32,2.85]
[1755429815804,2.76,193.4,193.32,2.85]
[1755429816006,2.76,193.38,193.32,2.85]
[1755429825113,2.76,193.38,193.29,8.57046533]
[1755429825309,2.76,193.38,193.3,2.85]
[1755429826633,4.82555143,193.37,193.3,2.85]
[1755429826834,2.76,193.36,193.3,2.85]
[1755429827530,2.76,193.36,193.29,126.3]
[1755429827531,2.76,193.36,193.29,129.28]
[1755429828734,2.76,193.36,193.3,2.98]
[1755429837728,2.76,193.36,193.29,126.3]
[1755429837932,2.76,193.36,193.29,129.28]
[1755429841437,2.76,193.36,193.3,2.98]
[1755429842637,2.76,193.36,193.29,126.3]
[1755429842934,2.96,193.34,193.29,129.28]
[1755429844140,2.96,193.34,193.29,126.3]
[1755429844531,2.96,193.34,193.29,129.28]
[1755429845244,94.40305017,193.44,193.3,2.98]
[1755429845437,2.96,193.42,193.3,2.98]
[1755429845635,2.96,193.4,193.3,2.98]
[1755429845831,7.79900095,193.39,193.3,2.98]
[1755429846036,94.40305017,193.44,193.29,134.87046533]
[1755429846236,2.96,193.41,193.31,2.98]
[1755429846438,4.83800955,193.4,193.31,2.98]
[1755429846737,2.96,193.4,193.31,2.98]
[1755429848839,4.8386607,193.39,193.33,2.98]
[1755429849038,2.96,193.38,193.34,2.98]
[1755429849234,2.96,193.38,193.33,2.98]
[1755429850943,2.96,193.38,193.34,2.98]
[1755429851144,2.96,193.38,193.33,2.98]
[1755429853444,2.96,193.43,193.33,2.98]
[1755429853642,2.96,193.41,193.33,2.98]
[1755429853845,8.60004242,193.42,193.33,2.98]
[1755429853846,4.83878201,193.4,193.33,2.98]
[1755429854149,2.96,193.38,193.32,126.32]
[1755429854341,2.96,193.38,193.35,2.98]
[1755429854647,2.96,193.38,193.33,2.98]
[1755429855146,2.96,193.37,193.33,2.98]
[1755429856046,94.40305017,193.44,193.33,2.98]
[1755429856246,2.96,193.42,193.33,2.98]
[1755429856451,2.96,193.4,193.33,2.98]
[1755429856747,4.83897351,193.39,193.33,2.98]
[1755429856941,2.96,193.37,193.33,2.98]
[1755429858855,2.97,193.39,193.33,2.98]
[1755429890474,2.84,193.36,193.33,2.98]
[1755429891170,5.84964178,193.48,193.33,2.98]
[1755429891474,2.84,193.46,193.33,2.98]
[1755429891669,8.61044651,193.45,193.34,2.98]
[1755429891870,2.84,193.43,193.34,11.55046533]
[1755429892067,2.84,193.43,193.36,2.98]
[1755429900474,2.84,193.43,193.35,2.98]